[Event "Titled Tuesday Blitz August 09 Late 2022"]
[White "Clarke, Brandon G I"]
[Black "Zhigalko, Sergei"]
[WhiteFideId "400319"]
[BlackFideId "13502956"]
[WhiteElo "2414"]
[BlackElo "2662"]
[Result "1-0"]
[Round "06"]
[TimeControl "180+1"]
[Date "2022.08.09"]
[WhiteClock "0:01:02"]
[BlackClock "0:00:53"]

1. e4 {[%clk 0:03:00]}  c5 {[%clk 0:03:00]} 2. Nf3 {[%clk 0:03:01]}  Nc6 {[%clk 0:03:00]} 3. d4 {[%clk 0:03:00]}  cxd4 {[%clk 0:03:01]} 4. Nxd4 {[%clk 0:03:01]}  Nf6 {[%clk 0:03:02]} 5. Nc3 {[%clk 0:03:01]}  e5 {[%clk 0:03:02]} 6. Ndb5 {[%clk 0:03:02]}  d6 {[%clk 0:03:02]} 7. Bg5 {[%clk 0:03:02]}  a6 {[%clk 0:03:03]} 8. Na3 {[%clk 0:03:03]}  b5 {[%clk 0:03:04]} 9. Nd5 {[%clk 0:03:03]}  Be7 {[%clk 0:03:04]} 10. Bxf6 {[%clk 0:03:04]}  Bxf6 {[%clk 0:03:05]} 11. c3 {[%clk 0:03:04]}  Bg5 {[%clk 0:03:05]} 12. Nc2 {[%clk 0:03:05]}  Ne7 {[%clk 0:03:06]} 13. h4 {[%clk 0:03:00]}  Bh6 {[%clk 0:03:06]} 14. a4 {[%clk 0:02:59]}  bxa4 {[%clk 0:03:06]} 15. Ncb4 {[%clk 0:02:59]}  O-O {[%clk 0:03:07]} 16. Qxa4 {[%clk 0:02:49]}  a5 {[%clk 0:03:07]} 17. Nxe7+ {[%clk 0:02:46]}  Qxe7 {[%clk 0:03:08]} 18. Nd5 {[%clk 0:02:47]}  Qd8 {[%clk 0:03:07]} 19. Bc4 {[%clk 0:02:28]}  Kh8 {[%clk 0:03:03]} 20. O-O {[%clk 0:02:06]}  Qxh4 {[%clk 0:03:01]} 21. Qc6 {[%clk 0:02:05]}  Bg4 {[%clk 0:01:35]} 22. Qxd6 {[%clk 0:01:56]}  Qg5 {[%clk 0:01:32]} 23. Ne3 {[%clk 0:01:36]}  Bf3 {[%clk 0:01:28]} 24. Rxa5 {[%clk 0:01:29]}  Rae8 {[%clk 0:01:17]} 25. Rfa1 {[%clk 0:01:20]}  Bxe4 {[%clk 0:01:14]} 26. Bd5 {[%clk 0:01:16]}  Rd8 {[%clk 0:01:11]} 27. Ra8 {[%clk 0:01:01]}  Bxd5 {[%clk 0:01:10]} 28. Qxf8+ {[%clk 0:01:01]}  Rxf8 {[%clk 0:00:53]} 29. Rxf8# {[%clk 0:01:02]} 1-0


[Site "https://www.chess.com"]

[Event "Titled Tuesday Blitz August 09 Late 2022"]
[White "Galperin, Platon"]
[Black "Sarana, Alexey"]
[WhiteFideId "14165414"]
[BlackFideId "24133795"]
[WhiteElo "2435"]
[BlackElo "2666"]
[Result "1/2-1/2"]
[Round "06"]
[TimeControl "180+1"]
[Date "2022.08.09"]
[WhiteClock "0:00:05"]
[BlackClock "0:00:07"]

1. b3 {[%clk 0:02:54]}  d5 {[%clk 0:02:56]} 2. Bb2 {[%clk 0:02:55]}  c5 {[%clk 0:02:57]} 3. e3 {[%clk 0:02:54]}  a6 {[%clk 0:02:53]} 4. Nf3 {[%clk 0:02:54]}  Nc6 {[%clk 0:02:53]} 5. d4 {[%clk 0:02:55]}  Nf6 {[%clk 0:02:49]} 6. c4 {[%clk 0:02:44]}  cxd4 {[%clk 0:02:48]} 7. Nxd4 {[%clk 0:02:44]}  e6 {[%clk 0:02:42]} 8. Nc3 {[%clk 0:02:40]}  Bd6 {[%clk 0:02:41]} 9. cxd5 {[%clk 0:02:38]}  exd5 {[%clk 0:02:40]} 10. Be2 {[%clk 0:02:38]}  O-O {[%clk 0:02:40]} 11. O-O {[%clk 0:02:38]}  Qe7 {[%clk 0:02:33]} 12. Rc1 {[%clk 0:02:34]}  Rd8 {[%clk 0:02:14]} 13. Nf3 {[%clk 0:02:32]}  Bg4 {[%clk 0:02:12]} 14. h3 {[%clk 0:02:31]}  Bh5 {[%clk 0:01:59]} 15. Na4 {[%clk 0:02:29]}  Bc7 {[%clk 0:01:20]} 16. Nh4 {[%clk 0:02:22]}  Qd6 {[%clk 0:01:15]} 17. g3 {[%clk 0:02:20]}  Bxe2 {[%clk 0:01:13]} 18. Qxe2 {[%clk 0:02:20]}  d4 {[%clk 0:01:13]} 19. Bxd4 {[%clk 0:02:08]}  Nxd4 {[%clk 0:01:05]} 20. exd4 {[%clk 0:02:08]}  Re8 {[%clk 0:01:05]} 21. Qf3 {[%clk 0:02:02]}  g6 {[%clk 0:00:57]} 22. Qxb7 {[%clk 0:02:01]}  Nd5 {[%clk 0:00:56]} 23. Rc5 {[%clk 0:01:56]}  Rad8 {[%clk 0:00:43]} 24. Rxd5 {[%clk 0:01:55]}  Qxd5 {[%clk 0:00:44]} 25. Qxc7 {[%clk 0:01:55]}  Qxd4 {[%clk 0:00:45]} 26. Qc3 {[%clk 0:01:47]}  Qe4 {[%clk 0:00:43]} 27. Nc5 {[%clk 0:01:43]}  Qc6 {[%clk 0:00:44]} 28. Qc4 {[%clk 0:01:31]}  Rc8 {[%clk 0:00:40]} 29. b4 {[%clk 0:01:30]}  a5 {[%clk 0:00:40]} 30. a3 {[%clk 0:01:30]}  axb4 {[%clk 0:00:39]} 31. axb4 {[%clk 0:01:31]}  Rb8 {[%clk 0:00:39]} 32. Rb1 {[%clk 0:01:27]}  Re5 {[%clk 0:00:36]} 33. Rd1 {[%clk 0:01:05]}  Rbe8 {[%clk 0:00:23]} 34. Ng2 {[%clk 0:00:53]}  Re2 {[%clk 0:00:21]} 35. b5 {[%clk 0:00:46]}  Qf3 {[%clk 0:00:17]} 36. Qf4 {[%clk 0:00:27]}  Qxf4 {[%clk 0:00:15]} 37. Nxf4 {[%clk 0:00:24]}  Rb2 {[%clk 0:00:16]} 38. Nd7 {[%clk 0:00:22]}  Kg7 {[%clk 0:00:15]} 39. b6 {[%clk 0:00:18]}  Rd8 {[%clk 0:00:15]} 40. Rd6 {[%clk 0:00:17]}  Rc8 {[%clk 0:00:13]} 41. Nd3 {[%clk 0:00:12]}  Rb1+ {[%clk 0:00:13]} 42. Kg2 {[%clk 0:00:12]}  Rd8 {[%clk 0:00:13]} 43. N3c5 {[%clk 0:00:11]}  h5 {[%clk 0:00:13]} 44. b7 {[%clk 0:00:11]}  Rb5 {[%clk 0:00:13]} 45. Rc6 {[%clk 0:00:08]}  Rxb7 {[%clk 0:00:10]} 46. Nxb7 {[%clk 0:00:07]}  Rxd7 {[%clk 0:00:11]} 47. Nc5 {[%clk 0:00:08]}  Rd5 {[%clk 0:00:12]} 48. Ne4 {[%clk 0:00:08]}  Re5 {[%clk 0:00:12]} 49. Kf3 {[%clk 0:00:08]}  Rf5+ {[%clk 0:00:12]} 50. Ke3 {[%clk 0:00:08]}  Re5 {[%clk 0:00:13]} 51. f4 {[%clk 0:00:08]}  Re7 {[%clk 0:00:13]} 52. Kf3 {[%clk 0:00:08]}  Ra7 {[%clk 0:00:13]} 53. Rc3 {[%clk 0:00:08]}  Rb7 {[%clk 0:00:13]} 54. Rd3 {[%clk 0:00:09]}  Ra7 {[%clk 0:00:13]} 55. g4 {[%clk 0:00:07]}  hxg4+ {[%clk 0:00:13]} 56. hxg4 {[%clk 0:00:08]}  Rb7 {[%clk 0:00:13]} 57. g5 {[%clk 0:00:09]}  Ra7 {[%clk 0:00:13]} 58. Kg4 {[%clk 0:00:05]}  Ra4 {[%clk 0:00:12]} 59. Nf6 {[%clk 0:00:05]}  Ra1 {[%clk 0:00:13]} 60. Rh3 {[%clk 0:00:04]}  Rg1+ {[%clk 0:00:11]} 61. Kf3 {[%clk 0:00:05]}  Rf1+ {[%clk 0:00:11]} 62. Ke3 {[%clk 0:00:05]}  Re1+ {[%clk 0:00:11]} 63. Kf2 {[%clk 0:00:06]}  Ra1 {[%clk 0:00:07]} 64. Rh7+ {[%clk 0:00:05]}  Kf8 {[%clk 0:00:08]} 65. Rh8+ {[%clk 0:00:06]}  Ke7 {[%clk 0:00:08]} 66. Re8+ {[%clk 0:00:06]}  Kd6 {[%clk 0:00:09]} 67. Ng4 {[%clk 0:00:06]}  Ra2+ {[%clk 0:00:08]} 68. Kf3 {[%clk 0:00:07]}  Ra1 {[%clk 0:00:07]} 69. Nh6 {[%clk 0:00:05]}  Ra7 {[%clk 0:00:07]} 70. Rf8 {[%clk 0:00:05]}  Ke6 {[%clk 0:00:07]} 71. Re8+ {[%clk 0:00:04]}  Kd6 {[%clk 0:00:07]} 72. Kg4 {[%clk 0:00:04]}  Rb7 {[%clk 0:00:07]} 73. Re3 {[%clk 0:00:01]}  Ra7 {[%clk 0:00:06]} 74. Re5 {[%clk 0:00:01]}  Rb7 {[%clk 0:00:06]} 75. Re1 {[%clk 0:00:02]}  Ra7 {[%clk 0:00:06]} 76. Re4 {[%clk 0:00:02]}  Rb7 {[%clk 0:00:07]} 77. f5 {[%clk 0:00:03]}  Kd5 {[%clk 0:00:04]} 78. Kf4 {[%clk 0:00:03]}  Rb1 {[%clk 0:00:02]} 79. Re5+ {[%clk 0:00:03]}  Kd4 {[%clk 0:00:03]} 80. Nxf7 {[%clk 0:00:02]}  Rf1+ {[%clk 0:00:03]} 81. Kg3 {[%clk 0:00:03]}  gxf5 {[%clk 0:00:01]} 82. Kg2 {[%clk 0:00:03]}  Rf4 {[%clk 0:00:02]} 83. Re6 {[%clk 0:00:03]}  Kd5 {[%clk 0:00:01]} 84. Rf6 {[%clk 0:00:03]}  Rg4+ {[%clk 0:00:01]} 85. Kf3 {[%clk 0:00:04]}  Rg1 {[%clk 0:00:01]} 86. Rxf5+ {[%clk 0:00:04]}  Ke6 {[%clk 0:00:02]} 87. Rf6+ {[%clk 0:00:05]}  Ke7 {[%clk 0:00:03]} 88. Kf4 {[%clk 0:00:04]}  Rf1+ {[%clk 0:00:03]} 89. Ke5 {[%clk 0:00:03]}  Rxf6 {[%clk 0:00:04]} 90. gxf6+ {[%clk 0:00:02]}  Kxf7 {[%clk 0:00:05]} 91. Kf5 {[%clk 0:00:03]}  Kf8 {[%clk 0:00:06]} 92. Ke6 {[%clk 0:00:04]}  Ke8 {[%clk 0:00:06]} 93. f7+ {[%clk 0:00:05]}  Kf8 {[%clk 0:00:07]} 94. Kf6 {[%clk 0:00:05]} 1/2-1/2


[Site "https://www.chess.com"]

[Event "Titled Tuesday Blitz August 09 Late 2022"]
[White "Grischuk, Alexander"]
[Black "Djordjevic, Vuk"]
[WhiteFideId "4126025"]
[BlackFideId "902098"]
[WhiteElo "2762"]
[BlackElo "2456"]
[Result "1-0"]
[Round "06"]
[TimeControl "180+1"]
[Date "2022.08.09"]
[WhiteClock "0:01:15"]
[BlackClock "0:00:01"]

1. d4 {[%clk 0:03:00]}  Nf6 {[%clk 0:02:59]} 2. c4 {[%clk 0:03:00]}  e6 {[%clk 0:03:00]} 3. Nc3 {[%clk 0:03:00]}  Bb4 {[%clk 0:03:00]} 4. e3 {[%clk 0:03:01]}  O-O {[%clk 0:03:01]} 5. Bd3 {[%clk 0:03:01]}  d5 {[%clk 0:03:01]} 6. a3 {[%clk 0:03:01]}  Bxc3+ {[%clk 0:02:59]} 7. bxc3 {[%clk 0:03:02]}  c5 {[%clk 0:03:00]} 8. cxd5 {[%clk 0:03:01]}  exd5 {[%clk 0:02:58]} 9. Ne2 {[%clk 0:03:02]}  b6 {[%clk 0:02:58]} 10. O-O {[%clk 0:03:02]}  Ba6 {[%clk 0:02:57]} 11. f3 {[%clk 0:03:00]}  Re8 {[%clk 0:02:57]} 12. Ng3 {[%clk 0:02:58]}  h5 {[%clk 0:02:46]} 13. Ra2 {[%clk 0:02:46]}  Qc8 {[%clk 0:02:39]} 14. Raf2 {[%clk 0:02:38]}  cxd4 {[%clk 0:02:14]} 15. cxd4 {[%clk 0:02:38]}  Bxd3 {[%clk 0:02:15]} 16. Qxd3 {[%clk 0:02:38]}  h4 {[%clk 0:02:00]} 17. Nf5 {[%clk 0:02:35]}  Qc4 {[%clk 0:01:54]} 18. Qb1 {[%clk 0:02:29]}  Re6 {[%clk 0:01:37]} 19. Nxh4 {[%clk 0:02:14]}  Nbd7 {[%clk 0:01:18]} 20. Rc2 {[%clk 0:02:13]}  Qa4 {[%clk 0:01:17]} 21. Nf5 {[%clk 0:02:12]}  g6 {[%clk 0:01:10]} 22. Ng3 {[%clk 0:02:12]}  b5 {[%clk 0:01:03]} 23. Ne2 {[%clk 0:01:57]}  a6 {[%clk 0:00:29]} 24. Nf4 {[%clk 0:01:53]}  Rd6 {[%clk 0:00:22]} 25. g4 {[%clk 0:01:32]}  Nb6 {[%clk 0:00:16]} 26. g5 {[%clk 0:01:31]}  Ne8 {[%clk 0:00:16]} 27. h4 {[%clk 0:01:26]}  Ng7 {[%clk 0:00:16]} 28. Rg2 {[%clk 0:01:20]}  Rc8 {[%clk 0:00:15]} 29. h5 {[%clk 0:01:20]}  Nxh5 {[%clk 0:00:06]} 30. Nxh5 {[%clk 0:01:20]}  gxh5 {[%clk 0:00:07]} 31. g6 {[%clk 0:01:21]}  f6 {[%clk 0:00:03]} 32. Qf5 {[%clk 0:01:19]}  Rc7 {[%clk 0:00:04]} 33. Qxh5 {[%clk 0:01:15]}  b4 {[%clk 0:00:04]} 34. Rh2 {[%clk 0:01:15]}  Kf8 {[%clk 0:00:03]} 35. Qh8+ {[%clk 0:01:14]}  Ke7 {[%clk 0:00:02]} 36. g7 {[%clk 0:01:15]}  Rd8 {[%clk 0:00:01]} 1-0


[Site "https://www.chess.com"]

[Event "Titled Tuesday Blitz August 09 Late 2022"]
[White "Hafiz, Arif Abdul"]
[Black "Toncheva, Nadya"]
[WhiteFideId "7104227"]
[BlackFideId "2924056"]
[WhiteElo "2198"]
[BlackElo "1888"]
[Result "1-0"]
[Round "06"]
[TimeControl "180+1"]
[Date "2022.08.09"]
[WhiteClock "0:00:55"]
[BlackClock "0:00:05"]

1. e4 {[%clk 0:03:00]}  c5 {[%clk 0:03:00]} 2. Nc3 {[%clk 0:02:59]}  Nc6 {[%clk 0:02:58]} 3. f4 {[%clk 0:03:00]}  g6 {[%clk 0:02:55]} 4. Nf3 {[%clk 0:03:01]}  Bg7 {[%clk 0:02:54]} 5. Bb5 {[%clk 0:03:01]}  Nd4 {[%clk 0:02:51]} 6. O-O {[%clk 0:03:02]}  a6 {[%clk 0:02:45]} 7. Bc4 {[%clk 0:03:02]}  e6 {[%clk 0:02:44]} 8. d3 {[%clk 0:03:02]}  Ne7 {[%clk 0:02:43]} 9. Nxd4 {[%clk 0:03:02]}  cxd4 {[%clk 0:02:41]} 10. Ne2 {[%clk 0:03:03]}  d5 {[%clk 0:02:37]} 11. Bb3 {[%clk 0:03:03]}  dxe4 {[%clk 0:02:31]} 12. dxe4 {[%clk 0:03:04]}  O-O {[%clk 0:02:27]} 13. e5 {[%clk 0:03:03]}  Nc6 {[%clk 0:02:15]} 14. c3 {[%clk 0:03:03]}  dxc3 {[%clk 0:02:12]} 15. bxc3 {[%clk 0:03:01]}  Qb6+ {[%clk 0:02:01]} 16. Nd4 {[%clk 0:02:59]}  Rd8 {[%clk 0:01:56]} 17. Be3 {[%clk 0:02:58]}  Bd7 {[%clk 0:01:51]} 18. Nf5 {[%clk 0:02:56]}  Qa5 {[%clk 0:01:46]} 19. Nd6 {[%clk 0:02:50]}  Qxc3 {[%clk 0:01:38]} 20. Bb6 {[%clk 0:02:50]}  Rf8 {[%clk 0:01:13]} 21. a3 {[%clk 0:02:27]}  Nxe5 {[%clk 0:01:05]} 22. fxe5 {[%clk 0:02:11]}  Qxe5 {[%clk 0:00:43]} 23. Ra2 {[%clk 0:02:01]}  Bc6 {[%clk 0:00:31]} 24. Re2 {[%clk 0:01:46]}  Qc3 {[%clk 0:00:20]} 25. Nxf7 {[%clk 0:01:09]}  Rxf7 {[%clk 0:00:19]} 26. Bxe6 {[%clk 0:01:08]}  Rf8 {[%clk 0:00:15]} 27. Ref2 {[%clk 0:00:59]}  Bb5 {[%clk 0:00:08]} 28. Rxf7 {[%clk 0:00:58]}  Bxf1 {[%clk 0:00:05]} 29. Rxf8+ {[%clk 0:00:54]}  Kxf8 {[%clk 0:00:05]} 30. Qd8# {[%clk 0:00:55]} 1-0


[Site "https://www.chess.com"]

[Event "Titled Tuesday Blitz August 09 Late 2022"]
[White "Kamsky, Gata"]
[Black "Maksimovic, Bojan"]
[WhiteFideId "2000024"]
[BlackFideId "14408120"]
[WhiteElo "2666"]
[BlackElo "2447"]
[Result "1-0"]
[Round "06"]
[TimeControl "180+1"]
[Date "2022.08.09"]
[WhiteClock "0:00:41"]
[BlackClock "0:00:13"]

1. d4 {[%clk 0:03:00]}  c5 {[%clk 0:02:58]} 2. d5 {[%clk 0:02:51]}  e5 {[%clk 0:02:58]} 3. e4 {[%clk 0:02:38]}  d6 {[%clk 0:02:58]} 4. Nc3 {[%clk 0:02:37]}  Be7 {[%clk 0:02:57]} 5. a4 {[%clk 0:02:36]}  Bg5 {[%clk 0:02:51]} 6. Nf3 {[%clk 0:02:29]}  Bxc1 {[%clk 0:02:50]} 7. Qxc1 {[%clk 0:02:30]}  Nf6 {[%clk 0:02:31]} 8. Bd3 {[%clk 0:02:29]}  O-O {[%clk 0:02:28]} 9. O-O {[%clk 0:02:27]}  Nbd7 {[%clk 0:02:03]} 10. Nd2 {[%clk 0:02:25]}  Qe7 {[%clk 0:01:56]} 11. Nc4 {[%clk 0:02:23]}  Rd8 {[%clk 0:01:57]} 12. a5 {[%clk 0:02:22]}  Nf8 {[%clk 0:01:55]} 13. f3 {[%clk 0:02:17]}  Nh5 {[%clk 0:01:53]} 14. g3 {[%clk 0:02:17]}  g6 {[%clk 0:01:50]} 15. Ne3 {[%clk 0:02:15]}  Ng7 {[%clk 0:01:48]} 16. Nc4 {[%clk 0:02:01]}  Bh3 {[%clk 0:01:48]} 17. Rf2 {[%clk 0:02:00]}  h5 {[%clk 0:01:48]} 18. Qh6 {[%clk 0:01:52]}  Nh7 {[%clk 0:01:41]} 19. f4 {[%clk 0:01:47]}  exf4 {[%clk 0:01:20]} 20. Qxf4 {[%clk 0:01:35]}  Ng5 {[%clk 0:01:14]} 21. Kh1 {[%clk 0:01:19]}  Ne8 {[%clk 0:00:47]} 22. e5 {[%clk 0:01:06]}  dxe5 {[%clk 0:00:46]} 23. Qxe5 {[%clk 0:01:06]}  Qxe5 {[%clk 0:00:42]} 24. Nxe5 {[%clk 0:01:06]}  Nd6 {[%clk 0:00:42]} 25. Nc4 {[%clk 0:00:57]}  Nxc4 {[%clk 0:00:41]} 26. Bxc4 {[%clk 0:00:57]}  Bf5 {[%clk 0:00:42]} 27. Re1 {[%clk 0:00:52]}  Re8 {[%clk 0:00:29]} 28. Rfe2 {[%clk 0:00:51]}  Rxe2 {[%clk 0:00:29]} 29. Rxe2 {[%clk 0:00:51]}  Rd8 {[%clk 0:00:30]} 30. h4 {[%clk 0:00:44]}  Nf3 {[%clk 0:00:29]} 31. Re7 {[%clk 0:00:43]}  Bxc2 {[%clk 0:00:13]} 32. Rxb7 {[%clk 0:00:41]}  Re8 {[%clk 0:00:13]} 33. d6 {[%clk 0:00:41]} 1-0


[Site "https://www.chess.com"]

[Event "Titled Tuesday Blitz August 09 Late 2022"]
[White "Kravtsiv, Martyn"]
[Black "Romanchuk, Viktor"]
[WhiteFideId "14113147"]
[BlackFideId "14109271"]
[WhiteElo "2694"]
[BlackElo "2242"]
[Result "1-0"]
[Round "06"]
[TimeControl "180+1"]
[Date "2022.08.09"]
[WhiteClock "0:00:20"]
[BlackClock "0:00:17"]

1. e4 {[%clk 0:03:00]}  e6 {[%clk 0:02:59]} 2. d4 {[%clk 0:02:59]}  d5 {[%clk 0:03:00]} 3. Nc3 {[%clk 0:03:00]}  dxe4 {[%clk 0:03:00]} 4. Nxe4 {[%clk 0:02:59]}  Nd7 {[%clk 0:03:01]} 5. Nf3 {[%clk 0:02:59]}  Ngf6 {[%clk 0:03:02]} 6. Bd3 {[%clk 0:02:58]}  c5 {[%clk 0:03:01]} 7. Nxf6+ {[%clk 0:02:51]}  Nxf6 {[%clk 0:03:01]} 8. Be3 {[%clk 0:02:45]}  Qc7 {[%clk 0:03:00]} 9. Qe2 {[%clk 0:02:44]}  Be7 {[%clk 0:02:58]} 10. dxc5 {[%clk 0:02:38]}  O-O {[%clk 0:02:55]} 11. O-O-O {[%clk 0:02:36]}  Nd5 {[%clk 0:02:52]} 12. h4 {[%clk 0:02:31]}  Nf4 {[%clk 0:02:34]} 13. Bxf4 {[%clk 0:02:26]}  Qxf4+ {[%clk 0:02:35]} 14. Kb1 {[%clk 0:02:26]}  Bxc5 {[%clk 0:02:33]} 15. g3 {[%clk 0:02:24]}  Qc7 {[%clk 0:01:47]} 16. Bxh7+ {[%clk 0:02:10]}  Kxh7 {[%clk 0:01:45]} 17. Ng5+ {[%clk 0:02:11]}  Kg6 {[%clk 0:01:35]} 18. f4 {[%clk 0:02:02]}  f6 {[%clk 0:01:29]} 19. Qd3+ {[%clk 0:01:39]}  f5 {[%clk 0:01:26]} 20. Rhe1 {[%clk 0:01:19]}  Rf6 {[%clk 0:01:25]} 21. Qb5 {[%clk 0:00:52]}  Qc6 {[%clk 0:01:21]} 22. h5+ {[%clk 0:00:50]}  Kh6 {[%clk 0:01:19]} 23. Rd8 {[%clk 0:00:47]}  Bf8 {[%clk 0:01:07]} 24. Qb4 {[%clk 0:00:37]}  a5 {[%clk 0:00:53]} 25. Rxf8 {[%clk 0:00:35]}  Kxh5 {[%clk 0:00:36]} 26. Rh8+ {[%clk 0:00:28]}  Rh6 {[%clk 0:00:35]} 27. Qf8 {[%clk 0:00:22]}  Kg4 {[%clk 0:00:23]} 28. Qxg7 {[%clk 0:00:20]}  Rxh8 {[%clk 0:00:20]} 29. Qxh8 {[%clk 0:00:21]}  Kxg3 {[%clk 0:00:17]} 30. Qh3+ {[%clk 0:00:20]}  Kxf4 {[%clk 0:00:17]} 31. Qh4# {[%clk 0:00:20]} 1-0


[Site "https://www.chess.com"]

[Event "Titled Tuesday Blitz August 09 Late 2022"]
[White "Livaic, Leon"]
[Black "Ekdyshman, Mikhail"]
[WhiteFideId "14531534"]
[BlackFideId "4149416"]
[WhiteElo "2540"]
[BlackElo "2146"]
[Result "1-0"]
[Round "06"]
[TimeControl "180+1"]
[Date "2022.08.09"]
[WhiteClock "0:02:31"]
[BlackClock "0:01:17"]

1. d4 {[%clk 0:03:00]}  Nf6 {[%clk 0:02:58]} 2. c4 {[%clk 0:03:01]}  c5 {[%clk 0:02:57]} 3. d5 {[%clk 0:03:01]}  b5 {[%clk 0:02:58]} 4. cxb5 {[%clk 0:03:02]}  a6 {[%clk 0:02:58]} 5. bxa6 {[%clk 0:03:03]}  Bxa6 {[%clk 0:02:59]} 6. Nc3 {[%clk 0:03:04]}  d6 {[%clk 0:02:59]} 7. e4 {[%clk 0:03:04]}  Bxf1 {[%clk 0:03:00]} 8. Kxf1 {[%clk 0:03:05]}  g6 {[%clk 0:03:00]} 9. Nf3 {[%clk 0:03:06]}  Qc8 {[%clk 0:03:01]} 10. h3 {[%clk 0:03:04]}  Bg7 {[%clk 0:03:00]} 11. g3 {[%clk 0:03:02]}  O-O {[%clk 0:03:01]} 12. Kg2 {[%clk 0:03:03]}  Qb7 {[%clk 0:03:01]} 13. Re1 {[%clk 0:03:01]}  Nbd7 {[%clk 0:03:01]} 14. e5 {[%clk 0:02:54]}  dxe5 {[%clk 0:02:58]} 15. Nxe5 {[%clk 0:02:55]}  Rad8 {[%clk 0:02:44]} 16. Nc6 {[%clk 0:02:50]}  Ra8 {[%clk 0:01:44]} 17. Rxe7 {[%clk 0:02:39]}  Ra6 {[%clk 0:01:33]} 18. Qf3 {[%clk 0:02:36]}  Re8 {[%clk 0:01:17]} 19. Rxe8+ {[%clk 0:02:33]}  Nxe8 {[%clk 0:01:17]} 20. Nd8 {[%clk 0:02:31]} 1-0


[Site "https://www.chess.com"]

[Event "Titled Tuesday Blitz August 09 Late 2022"]
[White "Llorente Zaro, Alfonso"]
[Black "Ladan, Nicholas"]
[WhiteFideId "2254131"]
[BlackFideId "30918855"]
[WhiteElo "2485"]
[BlackElo "2167"]
[Result "0-1"]
[Round "06"]
[TimeControl "180+1"]
[Date "2022.08.09"]
[WhiteClock "0:01:26"]
[BlackClock "0:00:05"]

1. e4 {[%clk 0:02:49]}  e5 {[%clk 0:02:59]} 2. Nc3 {[%clk 0:02:50]}  Nc6 {[%clk 0:02:58]} 3. Bc4 {[%clk 0:02:51]}  Nf6 {[%clk 0:02:58]} 4. d3 {[%clk 0:02:51]}  Na5 {[%clk 0:02:57]} 5. Nge2 {[%clk 0:02:49]}  c6 {[%clk 0:02:56]} 6. O-O {[%clk 0:02:47]}  d6 {[%clk 0:02:56]} 7. a4 {[%clk 0:02:45]}  Nxc4 {[%clk 0:02:55]} 8. dxc4 {[%clk 0:02:46]}  Be7 {[%clk 0:02:55]} 9. Ng3 {[%clk 0:02:45]}  Qc7 {[%clk 0:02:46]} 10. b3 {[%clk 0:02:43]}  h5 {[%clk 0:02:31]} 11. Qd3 {[%clk 0:02:36]}  h4 {[%clk 0:02:16]} 12. Nf5 {[%clk 0:02:26]}  Bxf5 {[%clk 0:02:15]} 13. exf5 {[%clk 0:02:27]}  h3 {[%clk 0:02:15]} 14. g3 {[%clk 0:02:26]}  O-O-O {[%clk 0:02:13]} 15. a5 {[%clk 0:02:26]}  a6 {[%clk 0:02:07]} 16. Bg5 {[%clk 0:02:26]}  Rh5 {[%clk 0:01:38]} 17. Bxf6 {[%clk 0:02:22]}  Bxf6 {[%clk 0:01:31]} 18. Ne4 {[%clk 0:02:21]}  d5 {[%clk 0:01:28]} 19. cxd5 {[%clk 0:02:15]}  cxd5 {[%clk 0:01:27]} 20. Qf3 {[%clk 0:02:16]}  Rhh8 {[%clk 0:00:59]} 21. Nxf6 {[%clk 0:02:15]}  gxf6 {[%clk 0:01:00]} 22. Rfd1 {[%clk 0:02:16]}  e4 {[%clk 0:00:50]} 23. Qe3 {[%clk 0:02:14]}  Qe5 {[%clk 0:00:49]} 24. Rd4 {[%clk 0:02:10]}  Rh5 {[%clk 0:00:39]} 25. Rad1 {[%clk 0:02:08]}  Rxf5 {[%clk 0:00:40]} 26. c4 {[%clk 0:02:07]}  Rf3 {[%clk 0:00:38]} 27. Qh6 {[%clk 0:02:08]}  e3 {[%clk 0:00:35]} 28. Qxh3+ {[%clk 0:01:59]}  Kb8 {[%clk 0:00:32]} 29. fxe3 {[%clk 0:01:58]}  Qxe3+ {[%clk 0:00:31]} 30. Kh1 {[%clk 0:01:58]}  Re8 {[%clk 0:00:10]} 31. Qd7 {[%clk 0:01:44]}  Rf2 {[%clk 0:00:07]} 32. Qxd5 {[%clk 0:01:26]}  Qe1+ {[%clk 0:00:05]} 0-1


[Site "https://www.chess.com"]

[Event "Titled Tuesday Blitz August 09 Late 2022"]
[White "Mahdavi, Reza"]
[Black "Adewumi, Tanitoluwa"]
[WhiteFideId "12595926"]
[BlackFideId "30966396"]
[WhiteElo "2226"]
[BlackElo "2519"]
[Result "1-0"]
[Round "06"]
[TimeControl "180+1"]
[Date "2022.08.09"]
[WhiteClock "0:01:12"]
[BlackClock "0:00:01"]

1. e4 {[%clk 0:03:00]}  c5 {[%clk 0:02:49]} 2. d4 {[%clk 0:02:57]}  cxd4 {[%clk 0:02:48]} 3. c3 {[%clk 0:02:54]}  dxc3 {[%clk 0:02:49]} 4. Nxc3 {[%clk 0:02:54]}  Nc6 {[%clk 0:02:49]} 5. Nf3 {[%clk 0:02:53]}  e6 {[%clk 0:02:45]} 6. Bc4 {[%clk 0:02:53]}  Bb4 {[%clk 0:02:43]} 7. O-O {[%clk 0:02:51]}  Nge7 {[%clk 0:02:42]} 8. Nb5 {[%clk 0:02:48]}  d5 {[%clk 0:02:14]} 9. Bf4 {[%clk 0:02:42]}  O-O {[%clk 0:01:55]} 10. Nc7 {[%clk 0:02:40]}  dxc4 {[%clk 0:01:49]} 11. Nxa8 {[%clk 0:02:39]}  b5 {[%clk 0:01:36]} 12. Nc7 {[%clk 0:02:38]}  a6 {[%clk 0:01:33]} 13. a4 {[%clk 0:02:35]}  Ng6 {[%clk 0:01:15]} 14. Bg3 {[%clk 0:02:32]}  e5 {[%clk 0:00:46]} 15. Qxd8 {[%clk 0:02:28]}  Rxd8 {[%clk 0:00:44]} 16. axb5 {[%clk 0:02:29]}  axb5 {[%clk 0:00:43]} 17. Nxb5 {[%clk 0:02:23]}  Bg4 {[%clk 0:00:34]} 18. Rfd1 {[%clk 0:02:21]}  Rb8 {[%clk 0:00:31]} 19. Na7 {[%clk 0:02:08]}  Nxa7 {[%clk 0:00:12]} 20. Rxa7 {[%clk 0:02:09]}  h5 {[%clk 0:00:10]} 21. Nxe5 {[%clk 0:01:45]}  Bxd1 {[%clk 0:00:05]} 22. Nxg6 {[%clk 0:01:44]}  Re8 {[%clk 0:00:04]} 23. Ne5 {[%clk 0:01:42]}  h4 {[%clk 0:00:04]} 24. Bf4 {[%clk 0:01:40]}  g5 {[%clk 0:00:04]} 25. Nd7 {[%clk 0:01:40]}  Rxe4 {[%clk 0:00:02]} 26. Nf6+ {[%clk 0:01:40]}  Kg7 {[%clk 0:00:02]} 27. Nxe4 {[%clk 0:01:41]}  gxf4 {[%clk 0:00:03]} 28. Rc7 {[%clk 0:01:35]}  Bb3 {[%clk 0:00:03]} 29. Rb7 {[%clk 0:01:25]}  Be1 {[%clk 0:00:02]} 30. Nd6 {[%clk 0:01:15]}  Ba5 {[%clk 0:00:01]} 31. Rxf7+ {[%clk 0:01:14]}  Kg6 {[%clk 0:00:02]} 32. Rxf4 {[%clk 0:01:13]}  Bb4 {[%clk 0:00:02]} 33. Nxc4 {[%clk 0:01:13]}  Kg5 {[%clk 0:00:02]} 34. Rd4 {[%clk 0:01:12]}  Kf5 {[%clk 0:00:01]} 35. Ne3+ {[%clk 0:01:12]} 1-0


[Site "https://www.chess.com"]